fUST/lending_fUST_20240503
["ID","MTS","AMOUNT","RATE_DAILY","PERIOD"]
[325312380,1714698632450,-409.0067745,0.00020901,2]
[325312381,1714698632459,-67447.80014634,0.00020901,2]
[325312382,1714698632468,-206.77268513,0.00020905,2]
[325312383,1714698632477,-7876.33653411,0.00020905,2]
[325312384,1714698632486,-5807.75773021,0.00020906,2]
[325312385,1714698632495,-12854.44176767,0.00020908,2]
[325312397,1714698638436,-474.81,0.00020891,3]
[325312398,1714698638446,-35.00042723,0.00020907,2]
[325312434,1714698643496,-135.99415166,0.00020907,2]
[325312435,1714698643506,-2823.83026905,0.00020908,2]
[325312436,1714698643515,-2626.7215223,0.00020909,2]
[325312437,1714698643525,-550.09434991,0.00020909,2]
[325312438,1714698643535,-355.04263474,0.00020909,2]
[325312439,1714698643544,-200.08380364,0.00020909,2]
[325312440,1714698643557,-235.8677462,0.00020909,2]
[325312441,1714698643567,-890.60317749,0.00020909,2]
[325312442,1714698643577,-232.29360846,0.00020909,2]
[325312443,1714698643587,-1013.83261813,0.00020909,2]
[325312444,1714698643597,-730.7033014,0.00020909,2]
[325312445,1714698643606,-2589.60801009,0.0002091,2]
[325312446,1714698643615,-8325.60877946,0.00020912,2]
[325312447,1714698643625,-265.71029574,0.00020912,2]
[325312448,1714698643634,-644.8339657,0.00020912,2]
[325312449,1714698643643,-151.0,0.00020912,2]
[325312450,1714698643653,-151.0,0.00020912,2]
[325312451,1714698643663,-151.0,0.00020912,2]
[325312452,1714698643672,-1435.77742,0.00020912,2]
[325312454,1714698643681,-1435.77742,0.00020912,2]
[325312455,1714698643691,-1623.963153,0.00020912,2]
[325312456,1714698643700,-151.0,0.00020912,2]
[325312457,1714698643709,-1623.963153,0.00020912,2]
[325312458,1714698643719,-794.981009,0.00020912,2]
[325312459,1714698643729,-794.981009,0.00020912,2]
[325312460,1714698643739,-620.073503,0.00020967,2]
[325312461,1714698643750,-22127.14973057,0.00021,2]
[325312462,1714698643759,-283.0,0.00021,2]
[325312463,1714698643768,-6956.86913502,0.00021,2]
[325312464,1714698643778,-151.0,0.00021,2]
[325312465,1714698643787,-151.0,0.00021,2]
[325312466,1714698643796,-871.760914,0.00021,2]
[325312467,1714698643807,-754.04972794,0.00021,2]
[325312472,1714698799379,161.442647,0.00019638,2]
[325312474,1714698914592,10606.62394467,0.00019638,2]
[325312477,1714699528571,196.29,0.0002339,120]
[325312478,1714699592673,250.48370975,0.00019178,2]
[325312517,1714699832711,-747.94623981,0.00020806,2]
[325312519,1714699832721,-593.54,0.00020896,3]
[325312520,1714699832731,-59236.59789083,0.00020903,2]
[325312521,1714699832740,-2457.03232127,0.00020904,2]
[325312522,1714699832750,-4346.00178681,0.00020904,2]
[325312575,1714699838806,-4399.30903654,0.00020904,2]
[325312983,1714699843953,-32123.29675944,0.00020904,2]
[325313002,1714699863244,1313.76683958,0.0001,2]
[325313004,1714699901083,-1048.23,0.00020902,2]
[325313005,1714699914053,1076.11911831,0.00022,11]
[325313007,1714700144039,203.0710685,0.00019906,2]
[325313008,1714700180698,511.85632889,9.999e-05,2]
[325313009,1714700797076,362.49207178,9.999e-05,2]
[325313011,1714700950309,161.442647,0.00019631,2]
[325313012,1714700969539,511.85632889,9.999e-05,2]
[325313048,1714701031943,-7143.05489806,0.00020901,2]
[325313049,1714701031952,-21.53057174,0.00020902,2]
[325313050,1714701031962,-154.80675855,0.00020902,2]
[325313051,1714701031971,-1580.83500587,0.00020902,2]
[325313052,1714701031981,-551.43918425,0.00020902,2]
[325313053,1714701031991,-724.74907059,0.00020902,2]
[325313054,1714701032130,-670.09295649,0.00020902,2]
[325313055,1714701032140,-302.98047658,0.00020902,2]
[325313056,1714701032150,-159.68668694,0.00020902,2]
[325313057,1714701032160,-200.52962551,0.00020902,2]
[325313058,1714701032169,-233.62049336,0.00020902,2]
[325313059,1714701032178,-155.07836462,0.00020902,2]
[325313060,1714701032188,-172.31976813,0.00020902,2]
[325313061,1714701032197,-198.61853665,0.00020902,2]
[325313062,1714701032207,-154.9480315,0.00020902,2]
[325313063,1714701032217,-1885.81677883,0.00020902,2]
[325313064,1714701032227,-363.32112355,0.00020902,2]
[325313065,1714701032237,-302.2076613,0.00020902,2]
[325313066,1714701032247,-220.39671051,0.00020902,2]
[325313067,1714701032256,-1010.07602183,0.00020903,2]
[325313068,1714701032265,-26579.19256355,0.00020904,2]
[325313069,1714701032274,-667.82274816,0.00020904,2]
[325313070,1714701032284,-1003.30974294,0.00020908,2]
[325313071,1714701032293,-206.35747881,0.00020908,2]
[325313072,1714701032302,-656.39263271,0.00020908,2]
[325313073,1714701032312,-594.94601473,0.00020908,2]
[325313074,1714701032322,-178.38217775,0.00020908,2]
[325313075,1714701032331,-5088.88063901,0.00020909,2]
[325313076,1714701032340,-2102.02562717,0.0002091,2]
[325313077,1714701032350,-2627.08475898,0.0002091,2]
[325313078,1714701032359,-200.00125004,0.00020911,2]
[325313079,1714701032368,-2789.51424651,0.00020911,2]
[325313080,1714701032379,-240.9134602,0.00020911,2]
[325313081,1714701032388,-154.73694719,0.00020911,2]
[325313082,1714701032398,-189.27431046,0.00020911,2]
[325313083,1714701032408,-247.80392021,0.00020911,2]
[325313084,1714701032418,-564.88021518,0.00020911,2]
[325313085,1714701032427,-468.79013614,0.00020911,2]
[325313086,1714701032436,-186.25450795,0.00020911,2]
[325313087,1714701032446,-475.26109045,0.00020911,2]
[325313088,1714701032455,-154.86182664,0.00020911,2]
[325313089,1714701032464,-212.26666393,0.00020911,2]
[325313090,1714701032474,-295.4093822,0.00020911,2]
[325313091,1714701032484,-4598.6373137,0.00020912,2]
[325313092,1714701032494,-624.71083919,0.00020915,2]
[325313093,1714701032503,-283.0,0.00021,2]
[325313094,1714701032512,-298.32,0.00021908,3]
[325313095,1714701032522,-894.96,0.00021908,3]
[325313096,1714701032531,-166.666666,0.00021918,2]
[325313097,1714701032540,-10000.0,0.00021918,2]
[325313098,1714701032550,-620.23554196,0.00021961,2]
[325313099,1714701032559,-159.27807126,0.00022,2]
[325313100,1714701032569,-588.0,0.00022,2]
[325313101,1714701032578,-152.0,0.00022024,2]
[325313102,1714701032588,-368.50923249,0.000223,2]
[325313103,1714701032597,-166.666666,0.00022431,2]
[325313104,1714701032607,-493.0,0.00022764,2]
[325313105,1714701032616,-296.202,0.00022764,2]
[325313106,1714701032626,-211.309,0.00022764,2]
[325313107,1714701032636,-166.666666,0.00022944,2]
[325313108,1714701032645,-714.43536843,0.00023,2]
[325313109,1714701032655,-620.0117771,0.00023059,2]
[325313110,1714701032664,-596.64,0.00023278,3]
[325313111,1714701032673,-500.0,0.0002339,7]
[325313112,1714701032682,-500.0,0.0002339,7]
[325313113,1714701032692,-500.0,0.0002339,7]
[325313114,1714701032701,-500.0,0.0002339,7]
[325313115,1714701032710,-307.66,0.0002339,7]
[325313116,1714701032719,-2000.0,0.0002339,2]
[325313117,1714701032729,-154.7215013,0.0002339,2]
[325313118,1714701032739,-166.666666,0.00023456,2]
[325313119,1714701032748,-3032.30963697,0.00023896,2]
[325313120,1714701032758,-153.0,0.00023927,2]
[325313121,1714701032767,-154.7942545,0.00023927,2]
[325313122,1714701032776,-153.0,0.00023927,2]
[325313123,1714701032785,-153.0,0.00023927,2]
[325313124,1714701032795,-153.0,0.00023927,2]
[325313125,1714701032804,-153.0,0.00023927,2]
[325313126,1714701032813,-153.0,0.00023927,2]
[325313127,1714701032823,-656.37538742,0.00023961,2]
[325313128,1714701032841,-166.666666,0.00023969,2]
[325313129,1714701032852,-1000.0,0.00023993,2]
[325313130,1714701032862,-1000.0,0.00023996,2]
[325313131,1714701032871,-693.7301281,0.00024,2]
[325313132,1714701032881,-1000.0,0.00024006,2]
[325313133,1714701032891,-445.43948424,0.00024026,2]
[325313134,1714701032900,-1000.0,0.00024047,2]
[325313135,1714701032909,-1000.0,0.00024064,2]
[325313136,1714701032919,-1000.0,0.00024073,2]
[325313137,1714701032928,-1000.0,0.00024086,2]
[325313138,1714701032938,-1000.0,0.00024093,2]
[325313139,1714701032947,-1000.0,0.00024099,2]
[325313140,1714701032956,-1000.0,0.000241,2]
[325313141,1714701032965,-1000.0,0.00024114,2]
[325313142,1714701032975,-1000.0,0.00024127,2]
[325313143,1714701032986,-1000.0,0.00024145,2]
[325313144,1714701032995,-1000.0,0.00024149,2]
[325313145,1714701033003,-155.741757,0.00024157,2]
[325313146,1714701033013,-1000.0,0.00024158,2]
[325313147,1714701033023,-3000.0,0.00024161,2]
[325313148,1714701033032,-3000.0,0.00024161,2]
[325313149,1714701033041,-3000.0,0.00024161,2]
[325313150,1714701033050,-3000.0,0.00024161,2]
[325313151,1714701033059,-3000.0,0.00024161,2]
[325313152,1714701033068,-151.992492,0.00024161,2]
[325313153,1714701033077,-234.345776,0.00024161,2]
[325313154,1714701033087,-151.0,0.00024161,2]
[325313155,1714701033096,-151.0,0.00024161,2]
[325313156,1714701033105,-42.28863801,0.00024161,2]
[325313365,1714701040185,-108.71136199,0.00024161,2]
[325313366,1714701040195,-151.0,0.00024161,2]
[325313367,1714701040206,-151.0,0.00024161,2]
[325313368,1714701040215,-192.521712,0.00024161,2]
[325313369,1714701040224,-151.0,0.00024161,2]
[325313370,1714701040235,-151.0,0.00024161,2]
[325313371,1714701040245,-151.0,0.00024161,2]
[325313372,1714701040254,-151.0,0.00024161,2]
[325313374,1714701040367,-154.33326,0.00024161,2]
[325313376,1714701040376,-151.0,0.00024161,2]
[325313378,1714701040387,-151.0,0.00024161,2]
[325313380,1714701040396,-153.174491,0.00024161,2]
[325313382,1714701040406,-151.0,0.00024161,2]
[325313384,1714701040416,-199.008546,0.00024161,2]
[325313386,1714701040425,-151.0,0.00024161,2]
[325313388,1714701040434,-151.0,0.00024161,2]
[325313390,1714701040444,-151.0,0.00024161,2]
[325313392,1714701040453,-192.74846,0.00024161,2]
[325313394,1714701040463,-154.930393,0.00024161,2]
[325313396,1714701040472,-151.0,0.00024161,2]
[325313398,1714701040481,-151.0,0.00024161,2]
[325313400,1714701040490,-151.0,0.00024161,2]
[325313402,1714701040499,-151.0,0.00024161,2]
[325313404,1714701040508,-155.430387,0.00024161,2]
[325313406,1714701040517,-791.317302,0.00024161,2]
[325313408,1714701040526,-791.317302,0.00024161,2]
[325313410,1714701040535,-791.317302,0.00024161,2]
[325313412,1714701040544,-791.317302,0.00024161,2]
[325313414,1714701040554,-1292.199678,0.00024161,2]
[325313416,1714701040563,-1292.199678,0.00024161,2]
[325313417,1714701040572,-1292.199678,0.00024161,2]
[325313419,1714701040581,-1292.199678,0.00024161,2]
[325313421,1714701040590,-151.0,0.00024161,2]
[325313423,1714701040599,-138.07456298,0.00024161,2]
[325313426,1714701040610,-12.92543702,0.00024161,2]
[325313427,1714701040619,-151.0,0.00024161,2]
[325313429,1714701040628,-151.0,0.00024161,2]
[325313431,1714701040638,-1462.818713,0.00024161,2]
[325313433,1714701040648,-1462.818713,0.00024161,2]
[325313434,1714701040657,-1462.818713,0.00024161,2]
[325313435,1714701040666,-1462.818713,0.00024161,2]
[325313436,1714701040675,-160.0,0.00024164,2]
[325313437,1714701040684,-1000.0,0.00024183,2]
[325313438,1714701040694,-620.00058885,0.00024212,2]
[325313439,1714701040703,-151.0,0.00024264,2]
[325313440,1714701040712,-154.808861,0.00024264,2]
[325313441,1714701040722,-151.0,0.00024264,2]
[325313443,1714701040731,-180.746064,0.00024264,2]
[325313445,1714701040742,-151.0,0.00024264,2]
[325313447,1714701040751,-157.942249,0.00024264,2]
[325313448,1714701040761,-151.0,0.00024264,2]
[325313449,1714701040770,-153.149928,0.00024264,2]
[325313450,1714701040780,-791.317302,0.00024264,2]
[325313451,1714701040789,-791.317302,0.00024264,2]
[325313452,1714701040798,-1292.199678,0.00024264,2]
[325313453,1714701040807,-1292.199678,0.00024264,2]
[325313454,1714701040816,-151.0,0.00024264,2]
[325313455,1714701040825,-151.0,0.00024264,2]
[325313456,1714701040836,-1462.818713,0.00024264,2]
[325313458,1714701040847,-1462.818713,0.00024264,2]
[325313459,1714701040856,-1000.0,0.00024276,2]
[325313460,1714701040866,-169.947066,0.000243,2]
[325313461,1714701040874,-2355.6937,0.000244,2]
[325313462,1714701040884,-166.666666,0.00024482,2]
[325313463,1714701040893,-500.0,0.00024658,2]
[325313464,1714701040903,-200.0,0.00024658,2]
[325313465,1714701040912,-380.0,0.00024658,2]
[325313466,1714701040921,-320.0,0.00024712,2]
[325313467,1714701040932,-154.81422293,0.00025,2]
[325313468,1714701040941,-336.5770789,0.0002526,2]
[325313469,1714701040950,-620.00002944,0.00025423,2]
[325313470,1714701040959,-559.50792396,0.00025586,2]
[325313471,1714701040968,-3000.0,0.00025685,2]
[325313473,1714701040977,-3000.0,0.00025685,2]
[325313474,1714701040987,-151.0,0.00025685,2]
[325313475,1714701040995,-151.0,0.00025685,2]
[325313476,1714701041004,-151.0,0.00025685,2]
[325313477,1714701041014,-151.0,0.00025685,2]
[325313478,1714701041023,-791.317302,0.00025685,2]
[325313479,1714701041032,-791.317302,0.00025685,2]
[325313480,1714701041041,-1292.199678,0.00025685,2]
[325313481,1714701041050,-1292.199678,0.00025685,2]
[325313482,1714701041059,-151.0,0.00025685,2]
[325313483,1714701041069,-151.0,0.00025685,2]
[325313484,1714701041078,-1462.818713,0.00025685,2]
[325313485,1714701041087,-1462.818713,0.00025685,2]
[325313486,1714701041096,-1000.0,0.0002575,2]
[325313487,1714701041105,-493.0,0.00025764,2]
[325313488,1714701041115,-150.0,0.00025764,2]
[325313489,1714701041124,-150.0,0.00025764,2]
[325313490,1714701041134,-209.90396595,0.00025786,3]
[325313491,1714701041143,-306.0,0.00025798,2]
[325313492,1714701041152,-1000.0,0.00025842,2]
[325313493,1714701041161,-1000.0,0.00025861,2]
[325313494,1714701041171,-1000.0,0.00025864,2]
[325313495,1714701041180,-6926.09728649,0.00026,2]
[325313496,1714701041189,-151.0,0.00026,2]
[325313497,1714701041198,-151.0,0.00026,2]
[325313498,1714701041207,-176.969053,0.00026,2]
[325313499,1714701041217,-151.0,0.00026,2]
[325313500,1714701041226,-791.317302,0.00026,2]
[325313501,1714701041236,-791.317302,0.00026,2]
[325313502,1714701041245,-1292.199678,0.00026,2]
[325313503,1714701041254,-1292.199678,0.00026,2]
[325313504,1714701041263,-160.901821,0.00026,2]
[325313505,1714701041272,-189.478493,0.00026,2]
[325313506,1714701041281,-1462.818713,0.00026,2]
[325313507,1714701041291,-1462.818713,0.00026,2]
[325313508,1714701041300,-1013.20022546,0.00026325,2]
[325313509,1714701041309,-150.0,0.00026524,2]
[325313510,1714701041322,-391.32061095,0.000266,2]
[325313511,1714701041331,-263.92355988,0.000266,2]
[325313512,1714701041344,-493.24398501,0.000266,2]
[325313513,1714701041353,-150.0,0.000266,2]
[325313514,1714701041362,-620.00000147,0.00026694,2]
[325313515,1714701041371,-219.37636265,0.00026759,2]
[325313516,1714701041380,-2924.0,0.000268,2]
[325313517,1714701041389,-6021.56168994,0.000268,2]
[325313518,1714701041400,-151.0,0.000268,2]
[325313519,1714701041409,-151.0,0.000268,2]
[325313520,1714701041418,-717.406519,0.000268,2]
[325313521,1714701041427,-151.0,0.000268,2]
[325313522,1714701041437,-791.317302,0.000268,2]
[325313523,1714701041447,-791.317302,0.000268,2]
[325313524,1714701041456,-1292.199678,0.000268,2]
[325313525,1714701041465,-1292.199678,0.000268,2]
[325313526,1714701041474,-1462.818713,0.000268,2]
[325313527,1714701041484,-1462.818713,0.000268,2]
[325313528,1714701041493,-151.0,0.000269,2]
[325313529,1714701041502,-151.0,0.000269,2]
[325313530,1714701041511,-717.406519,0.000269,2]
[325313531,1714701041520,-151.0,0.000269,2]
[325313532,1714701041529,-791.317302,0.000269,2]
[325313533,1714701041540,-791.317302,0.000269,2]
[325313534,1714701041549,-23681.91309216,0.000269,3]
[325313576,1714701043154,-31873.08690784,0.000269,3]
[325313578,1714701043163,-1292.199678,0.000269,2]
[325313579,1714701043172,-1292.199678,0.000269,2]
[325313580,1714701043182,-2000.0,0.000269,2]
[325313581,1714701043191,-1462.818713,0.000269,2]
[325313582,1714701043200,-1462.818713,0.000269,2]
[325313583,1714701043209,-9380.01685072,0.00027,2]
[325313584,1714701043218,-8532.81812051,0.00027,2]
[325313585,1714701043227,-123561.40932353,0.00027,15]
[325313599,1714701173817,-182.54868207,0.00039803,120]
[325313600,1714701173836,-207.05561319,0.00039803,120]
[325313601,1714701173856,-232.37848559,0.00039803,30]
[325313602,1714701173878,-482.10219415,0.00039803,30]
[325313604,1714702098603,9998.2,0.00025,60]
[325313605,1714702112544,700.89457381,9.999e-05,2]
[325313634,1714702232845,-511.85632889,0.0002081,2]
[325313635,1714702232855,-165.78379121,0.00020811,2]
[325313636,1714702232864,-389.9,0.00020904,3]
[325313637,1714702232874,-309.86015765,0.00020909,2]
[325313638,1714702232884,-701.49313731,0.00020909,2]
[325313639,1714702232893,-274.01657406,0.0002091,2]
[325313640,1714702232903,-268.39433373,0.00020911,2]
[325313641,1714702232912,-155.42751009,0.00020911,2]
[325313642,1714702232922,-1576.98678225,0.00020911,2]
[325313643,1714702232931,-1104.04068716,0.00020911,2]
[325313644,1714702232940,-155.19280206,0.00020911,2]
[325313645,1714702232950,-285.21863007,0.00020911,2]
[325313646,1714702232959,-719.07241073,0.00020911,2]
[325313647,1714702232968,-1492.097253,0.00020911,2]
[325313648,1714702232977,-1095.15602283,0.00020911,2]
[325313649,1714702232987,-566.88008959,0.00020911,2]
[325313650,1714702232997,-720.12147295,0.00020911,2]
[325313651,1714702233006,-36298.72289026,0.00020911,2]
[325313786,1714702240656,-2320.12266881,0.0002091,2]
[325313787,1714702240667,-31161.64878132,0.00020911,2]
[325313788,1714702240678,-172.5903698,0.00020912,2]
[325313789,1714702240688,-5848.64948825,0.00020912,2]
[325313790,1714702240698,-72.42480482,0.00021918,2]
[325313791,1714702240712,-2907.69852621,0.00021918,2]
[325314070,1714702246289,-1381.1742282,0.00021918,2]
[325314094,1714702416457,154.70605849,9.999e-05,2]
[325314096,1714702997350,161.442647,0.00019636,2]
[325314097,1714703222001,409.45081971,9.999e-05,2]
[325314121,1714703432645,-2591.7129178,0.00020809,2]
[325314123,1714703432655,-737.89302405,0.0002081,2]
[325314125,1714703432665,-172.5903698,0.00020907,2]
[325314127,1714703432675,-207.34225618,0.00020907,2]
[325314128,1714703432684,-409.98110412,0.00020907,2]
[325314129,1714703432694,-5848.64948825,0.00020908,2]
[325314130,1714703432704,-7876.33653411,0.00020909,2]
[325314131,1714703432713,-67460.37167158,0.00020909,2]
[325314132,1714703432722,-5835.29217699,0.0002091,2]
[325314133,1714703432732,-1501.10998466,0.00020911,2]
[325314134,1714703432741,-154.80698629,0.00020911,2]
[325314135,1714703432752,-155.43238847,0.00020911,2]
[325314136,1714703432761,-186.76067351,0.00020912,2]
[325314137,1714703432771,-8179.33290272,0.00020912,2]
[325314209,1714703438982,-4717.06721442,0.00020912,2]
[325314211,1714703438994,-435.05634958,0.00020913,2]
[325314213,1714703439003,-504.93565347,0.00020913,2]
[325314215,1714703439012,-503.00227049,0.00020913,2]
[325314216,1714703439022,-500.0,0.00020913,2]
[325314219,1714703439032,-500.0,0.00020913,2]
[325314220,1714703439041,-500.0,0.00020913,2]
[325314222,1714703439051,-254.35338775,0.00020913,2]
[325314224,1714703439060,-150.0,0.00021511,2]
[325314227,1714703439070,-25147.08382401,0.000219,2]
[325314238,1714703439278,-22648.30791676,0.000219,2]
[325314240,1714703439288,-10000.0,0.00021918,2]
[325314241,1714703439298,-166.666666,0.00021918,2]
[325314242,1714703439307,-159.311331,0.00022,2]
[325314243,1714703439317,-166.666666,0.00022431,2]
[325314244,1714703439326,-166.666666,0.00022944,2]
[325314245,1714703439335,-714.56650019,0.00023,2]
[325314246,1714703439344,-469.0,0.00023,2]
[325314247,1714703439354,-225.072,0.00023089,2]
[325314249,1714703439363,-469.0,0.00023288,2]
[325314250,1714703439372,-150.0,0.00023373,2]
[325314252,1714703439381,-620.00000008,0.00023408,2]
[325314253,1714703439390,-166.666666,0.00023456,2]
[325314254,1714703439399,-166.666666,0.00023969,2]
[325314255,1714703439410,-693.8834952,0.00024,2]
[325314256,1714703439419,-737.89302402,0.00024046,2]
[325314257,1714703439428,-469.0,0.00024164,2]
[325314258,1714703439437,-166.666666,0.00024482,2]
[325314259,1714703439446,-150.0,0.00024511,2]
[325314260,1714703439455,-620.0,0.00024578,2]
[325314261,1714703439464,-302.13926307,0.00025,2]
[325314262,1714703439474,-2000.0,0.00025,2]
[325314263,1714703439485,-2000.0,0.00025,2]
[325314264,1714703439494,-154.70605849,0.00025,2]
[325314265,1714703439503,-473.0,0.00025373,2]
[325314266,1714703439512,-620.0,0.00025807,2]
[325314267,1714703439522,-427.3329548,0.00026063,2]
[325314268,1714703439533,-588.0,0.000263,2]
[325314269,1714703439542,-150.0,0.00026373,2]
[325314270,1714703439554,-153.0,0.00026393,2]
[325314271,1714703439563,-153.0,0.00026393,2]
[325314272,1714703439576,-306.0,0.00026393,2]
[325314273,1714703439585,-306.0,0.00026393,2]
[325314274,1714703439594,-153.0,0.00026393,2]
[325314275,1714703439604,-306.0,0.00026393,2]
[325314276,1714703439613,-153.0,0.00026393,2]
[325314277,1714703439622,-153.0,0.00026393,2]
[325314278,1714703439631,-306.0,0.00026393,2]
[325314279,1714703439642,-153.0,0.00026393,2]
[325314280,1714703439651,-153.0,0.00026393,2]
[325314281,1714703439662,-307.6798797,0.00026393,2]
[325314282,1714703439671,-2000.0,0.000266,2]
[325314283,1714703439682,-17685.3957337,0.00027,15]
[325314284,1714703439691,-5000.0,0.00027,2]
[325314285,1714703439701,-9381.55295255,0.00027,2]
[325314286,1714703439710,-8534.85091698,0.00027,2]
[325314287,1714703439719,-283.0,0.00027,2]
[325314288,1714703439729,-469.0,0.00027064,2]
[325314289,1714703439741,-620.0,0.00027098,2]
[325314290,1714703439750,-407.8634516,0.00027168,2]
[325314291,1714703439759,-203.9317258,0.00027168,2]
[325314292,1714703439769,-269.9342733,0.00027207,2]
[325314293,1714703439778,-737.89302402,0.00027282,2]
[325314294,1714703439788,-404.77582734,0.00027397,2]
[325314295,1714703439797,-976.18009304,0.000274,2]
[325314296,1714703439806,-154.7389589,0.000274,2]
[325314297,1714703439816,-811.95170485,0.000275,17]
[325314298,1714703439826,-43325.15249298,0.000275,2]
[325314299,1714703439836,-150.0,0.00027511,2]
[325314300,1714703439845,-1656.8,0.00027678,3]
[325314301,1714703439854,-203.9317258,0.0002799,2]
[325314302,1714703439864,-203.9317258,0.0002799,2]
[325314303,1714703439873,-203.9317258,0.0002799,2]
[325314304,1714703439883,-221.01865842,0.00028,2]
[325314305,1714703439893,-203.9317258,0.00028029,2]
[325314306,1714703439903,-203.9317258,0.00028029,2]
[325314307,1714703439912,-203.9317258,0.00028029,2]
[325314308,1714703439922,-203.9317258,0.00028029,2]
[325314309,1714703439931,-203.9317258,0.00028029,2]
[325314310,1714703439940,-153.0,0.00028275,2]
[325314311,1714703439950,-153.0,0.00028275,2]
[325314312,1714703439959,-153.0,0.00028275,2]
[325314313,1714703439968,-2000.0,0.0002837,2]
[325314314,1714703439977,-620.0,0.00028453,2]
[325314315,1714703439989,-151.0,0.0002847,2]
[325314316,1714703439999,-162.701044,0.0002847,2]
[325314317,1714703440009,-151.0,0.0002847,2]
[325314318,1714703440019,-151.0,0.0002847,2]
[325314319,1714703440028,-151.0,0.0002847,2]
[325314320,1714703440037,-387.659904,0.0002847,2]
[325314321,1714703440046,-387.659904,0.0002847,2]
[325314323,1714703440056,-151.0,0.0002847,2]
[325314324,1714703440065,-237.39519,0.0002847,2]
[325314325,1714703440075,-237.39519,0.0002847,2]
[325314326,1714703440083,-367.730902,0.00028493,2]
[325314327,1714703440093,-373.371707,0.00028493,2]
[325314328,1714703440102,-164.894953,0.00028493,2]
[325314329,1714703440111,-160.431796,0.00028493,2]
[325314330,1714703440120,-891.24942819,0.00028637,120]
[325314331,1714703440130,-438.845614,0.0002867,2]
[325314332,1714703440139,-438.845614,0.0002867,2]
[325314333,1714703440148,-645.665867,0.0002867,2]
[325314334,1714703440157,-35240.30641762,0.0002867,3]
[325314456,1714703443928,-645.665867,0.0002867,2]
[325314458,1714703443938,-20314.69358238,0.0002867,3]
[325314460,1714703443948,-469.0,0.00028756,2]
[325314462,1714703443957,-152.15394621,0.00028769,2]
[325314463,1714703443966,-160.0,0.00028769,10]
[325314464,1714703443975,-198.18397486,0.00028769,10]
[325314465,1714703443991,-7598.10274604,0.0002877,2]
[325314466,1714703444002,-49606.85719433,0.0002877,2]
[325314472,1714703446762,-493.0,0.0002227,2]
[325314473,1714703446771,-493.0,0.0002527,2]
[325314474,1714703446781,-19642.34063,0.0002876,3]
[325314492,1714703765204,12316.3876475,0.00019911,2]
[325314493,1714703765811,43000.0,0.0002,2]
[325314494,1714703917816,291.8403533,0.0001991,2]
[325314501,1714704070701,511.85632889,9.999e-05,2]
[325314502,1714704114123,521.36939513,9.999e-05,2]
[325314503,1714704344134,-593.54,0.00020889,3]
[325314504,1714704344154,-59247.27286636,0.00020895,2]
[325314505,1714704344175,-23124.75158874,0.00020896,2]
[325314506,1714704432113,-155.09191994,0.00020893,2]
[325314507,1714704432134,-67460.37167158,0.00020894,2]
[325314508,1714704432153,-156.30842596,0.00020895,2]
[325314509,1714704432172,-59225.9229153,0.00020895,2]
[325314510,1714704432192,-171.56628091,0.00020896,2]
[325314511,1714704432210,-254.66644091,0.00020897,2]
[325314512,1714704432228,-194.44291808,0.00020899,2]
[325314513,1714704432247,-355.99987196,0.000209,2]
[325314514,1714704432265,-356.09056336,0.00020901,2]
[325314515,1714704432284,-155.97702317,0.00020902,2]
[325314516,1714704432304,-910.29914325,0.00020902,2]
[325314517,1714704432322,-307.64422809,0.00020902,2]
[325314518,1714704432341,-176.22116808,0.00020902,2]
[325314519,1714704432360,-380.69882736,0.00020902,2]
[325314520,1714704432382,-5481.99047917,0.00020902,2]
[325314521,1714704432400,-160.19327137,0.00020908,2]
[325314522,1714704432419,-154.88942994,0.00020909,2]